fUST/lending_fUST_20250624
["ID","MTS","AMOUNT","RATE_DAILY","PERIOD"]
[367254353,1750717838737,-460.0,0.00019201,2]
[367254354,1750717838746,-1000.0,0.00019201,2]
[367254355,1750717838756,-460.0,0.00019201,2]
[367254356,1750717838765,-460.0,0.00019201,2]
[367254358,1750717838775,-460.0,0.00019201,2]
[367254360,1750717838784,-460.0,0.00019201,2]
[367254361,1750717838793,-466.35092065,0.00019201,2]
[367254363,1750717838802,-460.0,0.00019201,2]
[367254365,1750717838812,-460.0,0.00019201,2]
[367254367,1750717838821,-460.0,0.00019201,2]
[367254368,1750717838831,-460.0,0.00019201,2]
[367254369,1750717838840,-267.158322,0.00019201,2]
[367254370,1750717838849,-460.0,0.00019201,2]
[367254371,1750717838859,-460.0,0.00019201,2]
[367254372,1750717838868,-460.0,0.00019201,2]
[367254373,1750717838877,-524.08,0.00019201,2]
[367254374,1750717838886,-576.95,0.00019201,2]
[367254375,1750717838896,-460.0,0.00019201,2]
[367254376,1750717838905,-460.0,0.00019201,2]
[367254377,1750717838914,-460.0,0.00019201,2]
[367254378,1750717838923,-350.0,0.00019201,2]
[367254379,1750717838932,-460.0,0.00019201,2]
[367254380,1750717838941,-460.0,0.00019201,2]
[367254381,1750717838950,-460.0,0.00019201,2]
[367254382,1750717838959,-460.0,0.00019201,2]
[367254383,1750717838969,-460.0,0.00019201,2]
[367254384,1750717838978,-460.0,0.00019201,2]
[367254385,1750717838987,-460.0,0.00019201,2]
[367254386,1750717838997,-593.97,0.00019201,2]
[367254387,1750717839006,-460.0,0.00019201,2]
[367254388,1750717839015,-460.0,0.00019201,2]
[367254389,1750717839025,-460.0,0.00019201,2]
[367254390,1750717839034,-460.0,0.00019201,2]
[367254391,1750717839042,-460.0,0.00019201,2]
[367254392,1750717839051,-468.26,0.00019201,2]
[367254393,1750717839061,-460.0,0.00019201,2]
[367254394,1750717839071,-460.0,0.00019201,2]
[367254395,1750717839082,-460.0,0.00019201,2]
[367254396,1750717839092,-1243.21,0.00019201,2]
[367254397,1750717839101,-435.07374364,0.00019201,2]
[367254398,1750717839111,-515.74860314,0.00019201,2]
[367254399,1750717839120,-460.0,0.00019201,2]
[367254400,1750717839130,-460.0,0.00019201,2]
[367254401,1750717839139,-460.0,0.00019201,2]
[367254402,1750717839148,-460.0,0.00019201,2]
[367254403,1750717839158,-460.0,0.00019201,2]
[367254404,1750717839167,-460.0,0.00019201,2]
[367254405,1750717839176,-460.0,0.00019201,2]
[367254406,1750717839186,-460.0,0.00019201,2]
[367254407,1750717839196,-460.0,0.00019201,2]
[367254408,1750717839206,-524.16,0.00019201,2]
[367254409,1750717839215,-460.0,0.00019201,2]
[367254410,1750717839224,-1000.0,0.00019201,2]
[367254411,1750717839235,-1000.0,0.00019201,2]
[367254412,1750717839245,-1000.0,0.00019201,2]
[367254413,1750717839255,-460.0,0.00019201,2]
[367254414,1750717839265,-460.0,0.00019201,2]
[367254415,1750717839275,-460.0,0.00019201,2]
[367254416,1750717839284,-585.53,0.00019201,2]
[367254417,1750717839293,-460.0,0.00019201,2]
[367254418,1750717839313,-497.04,0.00019201,2]
[367254419,1750717839326,-460.0,0.00019201,2]
[367254420,1750717839336,-601.56,0.00019201,2]
[367254421,1750717839346,-460.0,0.00019201,2]
[367254422,1750717839356,-460.0,0.00019201,2]
[367254423,1750717839365,-460.0,0.00019201,2]
[367254424,1750717839375,-460.0,0.00019201,2]
[367254425,1750717839385,-460.0,0.00019201,2]
[367254426,1750717839394,-460.0,0.00019201,2]
[367254427,1750717839404,-460.0,0.00019201,2]
[367254428,1750717839415,-460.0,0.00019201,2]
[367254429,1750717839425,-460.0,0.00019201,2]
[367254430,1750717839435,-460.0,0.00019201,2]
[367254431,1750717839444,-500.0,0.00019201,2]
[367254432,1750717839454,-255.99,0.00019201,2]
[367254433,1750717839463,-570.84,0.00019201,2]
[367254434,1750717839473,-460.0,0.00019201,2]
[367254435,1750717839483,-460.0,0.00019201,2]
[367254436,1750717839492,-460.0,0.00019201,2]
[367254437,1750717839501,-168.72209838,0.00019201,2]
[367254438,1750717839521,-291.27790162,0.00019201,2]
[367254439,1750717839530,-460.0,0.00019201,2]
[367254440,1750717839540,-460.0,0.00019201,2]
[367254441,1750717839550,-460.0,0.00019201,2]
[367254442,1750717839559,-258.89,0.00019201,2]
[367254443,1750717839568,-460.0,0.00019201,2]
[367254444,1750717839582,-536.53,0.00019201,2]
[367254445,1750717839591,-460.0,0.00019201,2]
[367254446,1750717839601,-460.0,0.00019201,2]
[367254447,1750717839609,-151.0,0.00019201,2]
[367254448,1750717839619,-460.0,0.00019201,2]
[367254449,1750717839628,-460.0,0.00019201,2]
[367254450,1750717839831,-460.0,0.00019201,2]
[367254451,1750717839841,-604.80386336,0.00019201,2]
[367254452,1750717839850,-473.06140531,0.00019201,2]
[367254453,1750717839860,-460.0,0.00019202,2]
[367254454,1750717839868,-451.27114126,0.00019202,2]
[367254455,1750717839878,-460.0,0.00019202,2]
[367254456,1750717839887,-503.73806384,0.00019202,2]
[367254457,1750717839897,-460.0,0.00019202,2]
[367254458,1750717839906,-460.0,0.00019202,2]
[367254459,1750717839915,-591.89,0.00019202,2]
[367254460,1750717839924,-460.0,0.00019202,2]
[367254461,1750717839933,-460.0,0.00019202,2]
[367254462,1750717839942,-460.0,0.00019202,2]
[367254464,1750717839952,-460.0,0.00019202,2]
[367254466,1750717839961,-460.0,0.00019202,2]
[367254467,1750717839970,-161.15487911,0.00019202,2]
[367254491,1750717840853,-298.84512089,0.00019202,2]
[367254493,1750717840863,-460.0,0.00019202,2]
[367254495,1750717840872,-52.62611739,0.00019202,2]
[367254497,1750717840890,-407.37388261,0.00019202,2]
[367254499,1750717840900,-460.0,0.00019202,2]
[367254501,1750717840909,-460.0,0.00019202,2]
[367254503,1750717840919,-662.46045094,0.00019202,2]
[367254592,1750717845856,-337.53954906,0.00019202,2]
[367254593,1750717845866,-1000.0,0.00019202,2]
[367254594,1750717845876,-500.0,0.00019228,2]
[367254595,1750717845885,-48.6896744,0.00019256,2]
[367254635,1750717847492,-254.77268796,0.00019256,2]
[367254636,1750717847503,-196.53763764,0.00019256,2]
[367254637,1750717847513,-500.0,0.00019273,2]
[367254638,1750717847522,-500.0,0.00019283,2]
[367254639,1750717847531,-382.06236236,0.00019311,2]
[367254645,1750718282581,165.5914954,0.00026178,60]
[367254646,1750718380191,553.083088,0.00013699,2]
[367254648,1750718386380,-436.8660779,0.00019101,2]
[367254654,1750718575669,43.03676243,0.00018234,2]
[367254655,1750718575696,20000.0,0.00018234,2]
[367254656,1750718575722,4856.96323757,0.00018234,2]
[367254657,1750718630074,1182.2251379,0.00018303,2]
[367254658,1750718636487,1390.7916648,0.00018303,2]
[367254659,1750718666477,-356.84710965,0.00019101,2]
[367254662,1750718835121,-25.41070853,0.00019101,2]
[367254663,1750718835646,-422.783423,0.00019178,2]
[367254664,1750718835670,-295.0,0.00019197,2]
[367254665,1750718835691,-300.0,0.00019197,2]
[367254666,1750718835713,-165.0,0.00019197,2]
[367254667,1750718835733,-160.0,0.00019198,2]
[367254668,1750718835755,-1200.0,0.00019198,2]
[367254669,1750718835776,-300.0,0.00019198,2]
[367254670,1750718835798,-300.0,0.00019198,2]
[367254671,1750718835818,-239.97,0.00019199,2]
[367254672,1750718835839,-160.81,0.00019199,2]
[367254673,1750718835859,-474.64181238,0.00019199,2]
[367254674,1750718835880,-108.24567316,0.00019199,2]
[367254675,1750718836172,-358.09831498,0.00019199,2]
[367254676,1750718836194,-460.0,0.00019199,2]
[367254677,1750718836216,-415.19313576,0.00019199,2]
[367254679,1750718952429,-187.918352,0.000191,2]
[367254716,1750719032859,-146.55723889,0.000191,2]
[367254762,1750719033371,-793.7131875,0.00019178,2]
[367254763,1750719033381,-119.72549361,0.00019198,2]
[367254764,1750719033393,-180.27450639,0.00019198,2]
[367254766,1750719033403,-1200.0,0.00019198,2]
[367254767,1750719033412,-10.51715838,0.00019199,2]
[367254769,1750719033428,-34.28970586,0.00019199,2]
[367254770,1750719033438,-404.52511996,0.00019199,2]
[367254771,1750719033447,-460.0,0.00019199,2]
[367254772,1750719033457,-466.21,0.00019199,2]
[367254773,1750719033467,-238.57,0.00019199,2]
[367254774,1750719033476,-440.91,0.00019199,2]
[367254775,1750719033488,-252.05,0.00019199,2]
[367254776,1750719033498,-460.0,0.00019199,2]
[367254777,1750719033508,-440.0,0.00019199,2]
[367254778,1750719033517,-460.0,0.00019199,2]
[367254779,1750719033527,-198.43358668,0.00019199,2]
[367254780,1750719033537,-460.0,0.00019199,2]
[367254781,1750719033547,-609.07,0.00019199,2]
[367254782,1750719033560,-422.68525037,0.00019199,2]
[367254783,1750719033571,-460.0,0.00019199,2]
[367254784,1750719033582,-460.0,0.00019199,2]
[367254785,1750719033591,-460.0,0.00019199,2]
[367254786,1750719033601,-460.0,0.00019199,2]
[367254787,1750719033610,-227.78900019,0.00019199,2]
[367254788,1750719033622,-460.0,0.00019199,2]
[367254789,1750719033632,-460.0,0.00019199,2]
[367254790,1750719033642,-460.0,0.00019199,2]
[367254791,1750719033652,-460.0,0.00019199,2]
[367254792,1750719033662,-606.89,0.00019199,2]
[367254793,1750719033671,-250.53712029,0.00019199,2]
[367254794,1750719033681,-260.71241051,0.00019199,2]
[367254795,1750719033690,-460.0,0.00019199,2]
[367254796,1750719033700,-460.0,0.00019199,2]
[367254797,1750719033709,-286.55474963,0.00019199,2]
[367254798,1750719033719,-185.72,0.00019199,2]
[367254799,1750719033730,-361.75006118,0.00019199,2]
[367254800,1750719033739,-460.0,0.00019199,2]
[367254801,1750719033749,-460.0,0.00019199,2]
[367254802,1750719033758,-460.0,0.00019199,2]
[367254803,1750719033768,-208.94,0.00019199,2]
[367254804,1750719033778,-460.0,0.00019199,2]
[367254805,1750719033787,-460.0,0.00019199,2]
[367254806,1750719033796,-583.80331621,0.000192,2]
[367254807,1750719033808,-460.0,0.000192,2]
[367254808,1750719033818,-460.0,0.000192,2]
[367254809,1750719033828,-460.0,0.000192,2]
[367254810,1750719033837,-460.0,0.000192,2]
[367254811,1750719033847,-460.0,0.000192,2]
[367254812,1750719033856,-460.0,0.000192,2]
[367254813,1750719033865,-460.0,0.000192,2]
[367254814,1750719033875,-460.0,0.000192,2]
[367254815,1750719033884,-460.0,0.000192,2]
[367254816,1750719033894,-460.0,0.000192,2]
[367254817,1750719033903,-163.62,0.000192,2]
[367254818,1750719033913,-435.52480862,0.000192,2]
[367254819,1750719033922,-327.1,0.000192,2]
[367254820,1750719033931,-460.0,0.000192,2]
[367254821,1750719033941,-460.0,0.000192,2]
[367254822,1750719033951,-397.1,0.000192,2]
[367254823,1750719033960,-250.51,0.000192,2]
[367254824,1750719033970,-460.0,0.000192,2]
[367254825,1750719033979,-210.3,0.000192,2]
[367254826,1750719033988,-460.0,0.000192,2]
[367254827,1750719033997,-460.0,0.000192,2]
[367254828,1750719034007,-526.97,0.000192,2]
[367254829,1750719034017,-534.38,0.000192,2]
[367254830,1750719034027,-460.0,0.000192,2]
[367254831,1750719034036,-460.0,0.000192,2]
[367254832,1750719034046,-514.17,0.000192,2]
[367254833,1750719034056,-460.0,0.000192,2]
[367254834,1750719034066,-289.68,0.000192,2]
[367254835,1750719034076,-1000.0,0.000192,2]
[367254836,1750719034086,-675.43240816,0.000192,2]
[367254837,1750719034095,-502.19,0.000192,2]
[367254838,1750719034105,-460.0,0.000192,2]
[367254839,1750719034115,-460.0,0.000192,2]
[367254840,1750719034125,-460.0,0.00019201,2]
[367254841,1750719034135,-460.0,0.00019201,2]
[367254842,1750719034145,-460.0,0.00019201,2]
[367254843,1750719034155,-521.06,0.00019201,2]
[367254844,1750719034164,-460.0,0.00019201,2]
[367254845,1750719034174,-460.0,0.00019201,2]
[367254846,1750719034184,-500.0,0.00019311,2]
[367254847,1750719034193,-460.0,0.00019337,2]
[367254848,1750719034203,-502.73,0.00019337,2]
[367254849,1750719034213,-460.0,0.00019337,2]
[367254850,1750719034222,-1191.41,0.00019337,2]
[367254851,1750719034232,-460.0,0.00019337,2]
[367254852,1750719034242,-460.0,0.00019337,2]
[367254853,1750719034252,-460.0,0.00019337,2]
[367254854,1750719034262,-576.49,0.00019337,2]
[367254855,1750719034271,-547.05,0.00019337,2]
[367254856,1750719034280,-346.03715028,0.00019337,2]
[367254857,1750719034291,-500.0,0.00019338,2]
[367254858,1750719034301,-33.95349112,0.00019366,2]
[367254868,1750719038762,-466.04650888,0.00019366,2]
[367254869,1750719038772,-628.93763764,0.00019393,2]
[367254870,1750719038782,-476.58,0.00019473,2]
[367254871,1750719038792,-440.37,0.00019473,2]
[367254872,1750719038801,-460.0,0.00019473,2]
[367254873,1750719038813,-460.0,0.00019473,2]
[367254874,1750719038823,-460.0,0.00019473,2]
[367254875,1750719038832,-158.4,0.00019473,2]
[367254876,1750719038841,-460.0,0.00019473,2]
[367254877,1750719038850,-460.0,0.00019473,2]
[367254878,1750719038860,-460.0,0.00019473,2]
[367254879,1750719038870,-460.0,0.00019473,2]
[367254880,1750719038879,-460.0,0.00019473,2]
[367254881,1750719038888,-460.0,0.00019473,2]
[367254882,1750719038897,-602.39446356,0.00019473,2]
[367254883,1750719038906,-130.4898525,0.00019473,2]
[367254884,1750719038918,-329.5101475,0.00019473,2]
[367254885,1750719038928,-460.0,0.00019473,2]
[367254886,1750719038937,-460.0,0.00019473,2]
[367254887,1750719038946,-460.0,0.00019473,2]
[367254888,1750719038955,-460.0,0.00019473,2]
[367254889,1750719038974,-460.0,0.00019473,2]
[367254890,1750719038984,-587.25142968,0.00019474,2]
[367254891,1750719038994,-273.59,0.00019474,2]
[367254892,1750719039004,-51.82761837,0.00019474,2]
[367254893,1750719039017,-408.17238163,0.00019474,2]
[367254894,1750719039027,-216.8,0.00019474,2]
[367254895,1750719039036,-460.0,0.00019474,2]
[367254896,1750719039046,-460.0,0.00019474,2]
[367254897,1750719039058,-460.0,0.00019474,2]
[367254898,1750719039068,-460.0,0.00019474,2]
[367254899,1750719039077,-460.0,0.00019474,2]
[367254900,1750719039087,-96.46473337,0.00019474,2]
[367254901,1750719039099,-186.1785727,0.00019474,2]
[367254902,1750719039110,-514.17,0.00019474,2]
[367254903,1750719039120,-460.0,0.00019474,2]
[367254904,1750719039130,-502.19,0.00019474,2]
[367254905,1750719039140,-460.0,0.00019474,2]
[367254906,1750719039150,-394.18,0.00019475,2]
[367254907,1750719039160,-243.93,0.00019475,2]
[367254908,1750719039170,-224.63,0.00019475,2]
[367254909,1750719039179,-192.36,0.00019475,2]
[367254910,1750719039189,-663.98362227,0.00019497,2]
[367254911,1750719039199,-179.32,0.00019611,2]
[367254912,1750719039208,-300.01322723,0.00019611,2]
[367254913,1750719039220,-282.29292977,0.00019611,2]
[367254914,1750719039231,-566.04,0.00019611,2]
[367255050,1750719045339,-0.00755019,0.00019199,2]
[367255118,1750719046865,-459.99244981,0.00019199,2]
[367255121,1750719046875,-460.0,0.00019473,2]
[367255122,1750719046884,-43.063843,0.00019611,2]
[367255125,1750719046894,-460.0,0.00019611,2]
[367255127,1750719046903,-460.0,0.00019611,2]
[367255130,1750719046912,-460.0,0.00019611,2]
[367255132,1750719046922,-576.49,0.00019611,2]
[367255135,1750719046931,-547.05,0.00019611,2]
[367255137,1750719046941,-500.0,0.0001962,2]
[367255140,1750719046950,-460.0,0.00019747,2]
[367255141,1750719046960,-460.0,0.00019747,2]
[367255144,1750719046969,-440.74,0.00019747,2]
[367255146,1750719046978,-358.63011443,0.00019747,2]
[367255152,1750719047009,-212.53745822,0.00019747,2]
[367255155,1750719047019,-267.90254178,0.00019747,2]
[367255280,1750719253143,165.3911684,0.00018752,2]
[367255281,1750719288979,363.59373388,0.00019098,2]
[367255283,1750719423457,554.220956,0.00013699,2]
[367255284,1750719590647,11486.81410145,0.00018701,2]
[367255285,1750719591176,13413.18589855,0.00018701,2]
[367255286,1750720042095,-338.226738,0.00019178,2]
[367255287,1750720042115,-187.918352,0.00019178,2]
[367255288,1750720042136,-300.0,0.00019198,2]
[367255289,1750720042157,-657.63042115,0.00019198,2]
[367255290,1750720053134,-542.36957885,0.00019198,2]
[367255291,1750720053157,-300.0,0.00019198,2]
[367255292,1750720053181,-279.37828979,0.00019198,2]
[367255297,1750720219343,208.38353764,0.00017458,2]
[367255308,1750720232051,-300.0,0.00019198,2]
[367255309,1750720232061,-201.0,0.00019198,2]
[367255310,1750720232071,-163.68721255,0.00019199,2]
[367255311,1750720232081,-460.0,0.00019199,2]
[367255312,1750720232092,-80.60131335,0.00019199,2]
[367255313,1750720232103,-343.26172864,0.00019199,2]
[367255314,1750720232114,-184.24943864,0.00019199,2]
[367255315,1750720232123,-261.96,0.00019199,2]
[367255316,1750720232132,-460.0,0.00019199,2]
[367255317,1750720232142,-460.0,0.00019199,2]
[367255318,1750720232151,-460.0,0.00019199,2]
[367255319,1750720232161,-460.0,0.00019199,2]
[367255320,1750720232170,-460.0,0.00019199,2]
[367255321,1750720232180,-460.0,0.00019199,2]
[367255322,1750720232191,-9.39821049,0.00019199,2]
[367255323,1750720232204,-450.60178951,0.00019199,2]
[367255324,1750720232213,-276.50324145,0.00019199,2]
[367255325,1750720232225,-723.49675855,0.00019199,2]
[367255326,1750720232235,-835.2,0.00019199,2]
[367255327,1750720232245,-460.0,0.00019199,2]
[367255328,1750720232254,-460.0,0.00019199,2]
[367255329,1750720232264,-500.0,0.0001937,2]
[367255330,1750720232274,-460.0,0.00019371,2]
[367255331,1750720232283,-460.0,0.00019371,2]
[367255332,1750720232293,-460.0,0.00019371,2]
[367255333,1750720232303,-460.0,0.00019371,2]
[367255334,1750720232314,-460.0,0.00019371,2]
[367255335,1750720232324,-460.0,0.00019371,2]
[367255336,1750720232334,-460.0,0.00019371,2]
[367255337,1750720232345,-207.4,0.00019371,2]
[367255338,1750720232355,-1688.0,0.00019371,2]
[367255339,1750720232365,-646.18962568,0.00019371,2]
[367255340,1750720232375,-500.0,0.00019371,2]
[367255341,1750720232384,-500.0,0.00019371,2]
[367255342,1750720232393,-500.0,0.00019371,2]
[367255343,1750720232404,-500.0,0.00019371,2]
[367255344,1750720232415,-500.0,0.00019371,2]
[367255345,1750720232425,-500.0,0.00019371,2]
[367255346,1750720232434,-500.0,0.00019371,2]
[367255347,1750720232444,-500.0,0.00019371,2]
[367255348,1750720232456,-5000.0,0.00019371,2]
[367255349,1750720232465,-500.0,0.00019371,2]
[367255350,1750720232474,-500.0,0.00019371,2]
[367255351,1750720232484,-25000.0,0.00019371,2]
[367255352,1750720232493,-1750.456,0.00019426,2]
[367255353,1750720232502,-460.0,0.00019472,2]
[367255354,1750720232511,-518.41,0.00019472,2]
[367255355,1750720232521,-390.0,0.00019472,2]
[367255356,1750720232530,-460.0,0.00019472,2]
[367255357,1750720232539,-460.0,0.00019472,2]
[367255358,1750720232548,-460.0,0.00019472,2]
[367255359,1750720232557,-460.0,0.00019472,2]
[367255360,1750720232566,-460.0,0.00019472,2]
[367255361,1750720232577,-460.0,0.00019472,2]
[367255362,1750720232587,-460.0,0.00019472,2]
[367255363,1750720232598,-418.27,0.00019472,2]
[367255364,1750720232609,-460.0,0.00019472,2]
[367255365,1750720232618,-226.27,0.00019472,2]
[367255366,1750720232628,-556.1533956,0.00019472,2]
[367255367,1750720232639,-460.0,0.00019472,2]
[367255368,1750720232649,-460.0,0.00019472,2]
[367255369,1750720232658,-267.19562925,0.00019472,2]
[367255370,1750720232667,-460.0,0.00019473,2]
[367255371,1750720232677,-537.73,0.00019473,2]
[367255372,1750720232686,-470.77915982,0.00019473,2]
[367255373,1750720232696,-460.0,0.00019473,2]
[367255374,1750720232706,-460.0,0.00019473,2]
[367255375,1750720232716,-460.0,0.00019473,2]
[367255376,1750720232727,-1242.15,0.00019473,2]
[367255377,1750720232737,-835.2,0.00019473,2]
[367255378,1750720232747,-460.0,0.00019473,2]
[367255379,1750720232757,-460.0,0.00019473,2]
[367255380,1750720232767,-528.45,0.00019473,2]
[367255381,1750720232776,-193.20554288,0.00019473,2]
[367255382,1750720232785,-520.63,0.00019473,2]
[367255383,1750720232794,-471.33,0.00019473,2]
[367255384,1750720232804,-1296.82746418,0.00019481,2]
[367255385,1750720232814,-460.0,0.00019645,2]
[367255386,1750720232824,-460.0,0.00019645,2]
[367255387,1750720232834,-460.0,0.00019645,2]
[367255388,1750720232844,-460.0,0.00019645,2]
[367255389,1750720232854,-460.0,0.00019645,2]
[367255390,1750720232863,-460.0,0.00019746,2]
[367255391,1750720232873,-540.0,0.00019746,2]
[367255392,1750720232882,-460.0,0.00019746,2]
[367255393,1750720232891,-460.0,0.00019746,2]
[367255394,1750720232901,-460.0,0.00019746,2]
[367255395,1750720232911,-460.0,0.00019746,2]
[367255396,1750720232920,-460.0,0.00019746,2]
[367255397,1750720232939,-473.17,0.00019746,2]
[367255398,1750720232949,-460.0,0.00019746,2]
[367255399,1750720232959,-460.0,0.00019746,2]
[367255400,1750720232968,-561.03732889,0.00019747,2]
[367255401,1750720232978,-460.0,0.00019747,2]
[367255402,1750720232988,-460.0,0.00019747,2]
[367255403,1750720232998,-1242.15,0.00019747,2]
[367255404,1750720233007,-835.2,0.00019747,2]
[367255405,1750720233017,-460.0,0.00019747,2]
[367255406,1750720233028,-460.0,0.00019747,2]
[367255407,1750720233037,-528.45,0.00019747,2]
[367255408,1750720233046,-520.63,0.00019747,2]
[367255409,1750720233056,-471.33,0.00019747,2]
[367255410,1750720233065,-460.0,0.00019919,2]
[367255411,1750720233075,-460.0,0.00019919,2]
[367255412,1750720233085,-232.09745822,0.00019919,2]
[367255413,1750720233094,-460.0,0.00019919,2]
[367255414,1750720233104,-460.0,0.00019919,2]
[367255415,1750720233114,-5000.0,0.00019919,2]
[367255416,1750720233123,-500.0,0.00019944,2]
[367255417,1750720233132,-500.0,0.00019944,2]
[367255418,1750720233143,-500.0,0.00019975,2]
[367255419,1750720233152,-500.0,0.00019975,2]
[367255420,1750720233162,-327.00775425,0.00019978,2]
[367255421,1750720233171,-500.0,0.00019992,2]
[367255422,1750720233181,-3233.68283709,0.00019999,2]
[367255423,1750720233191,-11165.18708365,0.00019999,2]
[367255424,1750720233200,-7192.67838365,0.0002,5]
[367255425,1750720233210,-1988.96653773,0.0002,2]
[367255426,1750720233219,-515.87976678,0.0002002,2]
[367255427,1750720233229,-188.15519138,0.0002002,2]
[367255428,1750720233240,-236.32,0.0002002,2]
[367255429,1750720233249,-460.0,0.0002002,2]
[367255430,1750720233259,-460.0,0.0002002,2]
[367255431,1750720233268,-500.0,0.0002002,2]
[367255432,1750720233278,-460.0,0.0002002,2]
[367255433,1750720233288,-327.40058628,0.0002002,2]
[367255434,1750720233298,-225.25,0.0002002,2]
[367255435,1750720233308,-460.0,0.00020021,2]
[367255436,1750720233317,-460.0,0.00020021,2]
[367255437,1750720233327,-1242.15,0.00020021,2]
[367255438,1750720233336,-835.2,0.00020021,2]
[367255439,1750720233345,-460.0,0.00020021,2]
[367255440,1750720233354,-460.0,0.00020021,2]
[367255441,1750720233364,-528.45,0.00020021,2]
[367255442,1750720233373,-520.63,0.00020021,2]
[367255443,1750720233382,-471.33,0.00020021,2]
[367255444,1750720233392,-500.0,0.00020073,2]
[367255445,1750720233401,-500.0,0.00020076,2]
[367255446,1750720233411,-500.0,0.00020076,2]
[367255447,1750720233420,-500.0,0.00020076,2]
[367255448,1750720233429,-500.0,0.00020076,2]
[367255449,1750720233438,-297.82184225,0.00020076,2]
[367255450,1750720233448,-392.8783276,0.00020082,2]
[367255451,1750720233458,-365.8891638,0.00020082,2]
[367255452,1750720233467,-505.60203517,0.00020176,2]
[367255453,1750720233477,-500.0,0.00020176,2]
[367255454,1750720233486,-554.220956,0.00020187,2]
[367255455,1750720233496,-460.0,0.00020193,2]
[367255456,1750720233505,-460.0,0.00020193,2]
[367255457,1750720233514,-460.0,0.00020193,2]
[367255458,1750720233524,-460.0,0.00020193,2]
[367255459,1750720233533,-500.0,0.00020212,2]
[367255460,1750720233543,-500.0,0.00020212,2]
[367255461,1750720233553,-500.61598727,0.0002025,2]
[367255462,1750720233562,-500.0,0.0002025,2]
[367255463,1750720233571,-500.0,0.0002025,2]
[367255464,1750720233582,-460.0,0.00020294,2]
[367255465,1750720233591,-518.97,0.00020294,2]
[367255466,1750720233600,-460.0,0.00020294,2]
[367255467,1750720233610,-460.0,0.00020295,2]
[367255468,1750720233620,-330.81,0.00020295,2]
[367255469,1750720233630,-1242.15,0.00020295,2]
[367255470,1750720233639,-835.2,0.00020295,2]
[367255471,1750720233649,-460.0,0.00020295,2]
[367255472,1750720233658,-460.0,0.00020295,2]
[367255473,1750720233668,-528.45,0.00020295,2]
[367255474,1750720233677,-520.63,0.00020295,2]
[367255475,1750720233686,-471.33,0.00020295,2]
[367255476,1750720233695,-460.0,0.00020467,2]
[367255477,1750720233704,-460.0,0.00020467,2]
[367255478,1750720233713,-460.0,0.00020467,2]
[367255479,1750720233722,-460.0,0.00020467,2]
[367255480,1750720233731,-500.0,0.00020523,2]
[367255481,1750720233740,-1000.0,0.00020523,2]
[367255482,1750720233750,-1000.0,0.0002054,2]
[367255483,1750720233759,-351.96,0.00020541,3]
[367255484,1750720233769,-175.98,0.00020541,3]
[367255485,1750720233778,-527.96,0.00020541,3]